fUST/lending_fUST_20240602
["ID","MTS","AMOUNT","RATE_DAILY","PERIOD"]
[328386248,1717313442697,-475.19700936,0.00021917,2]
[328386250,1717313442707,-500.0,0.00021917,2]
[328386251,1717313442717,-500.0,0.00021917,2]
[328386252,1717313442726,-500.0,0.00021917,2]
[328386253,1717313442736,-502.2927991,0.00021917,2]
[328386254,1717313442745,-162.87456874,0.00021917,2]
[328386255,1717313442754,-195.57709814,0.00021917,2]
[328386256,1717313442763,-500.0,0.00021917,2]
[328386257,1717313442773,-501.76035135,0.00021917,2]
[328386258,1717313442782,-500.0,0.00021917,2]
[328386259,1717313442791,-500.0,0.00021917,2]
[328386260,1717313442800,-501.58064984,0.00021917,2]
[328386261,1717313442901,-500.0,0.00021917,2]
[328386262,1717313442912,-502.32044901,0.00021917,2]
[328386263,1717313442922,-502.40437476,0.00021917,2]
[328386264,1717313442932,-500.66604254,0.00021917,2]
[328386265,1717313442942,-255.33755544,0.00021917,2]
[328386266,1717313442951,-500.0,0.00021917,2]
[328386267,1717313442961,-500.0,0.00021917,2]
[328386268,1717313442972,-529.1461087,0.00021917,2]
[328386269,1717313442981,-500.55214845,0.00021917,2]
[328386270,1717313442991,-502.97406748,0.00021917,2]
[328386271,1717313443000,-501.34944316,0.00021917,2]
[328386272,1717313443009,-514.22669337,0.00021917,2]
[328386273,1717313443018,-270.0176697,0.00021917,2]
[328386274,1717313443028,-501.59477075,0.00021917,2]
[328386275,1717313443037,-605.19,0.00021917,2]
[328386276,1717313443046,-500.16915387,0.00021917,2]
[328386277,1717313443055,-500.0,0.00021917,2]
[328386278,1717313443064,-500.0,0.00021917,2]
[328386279,1717313443073,-406.10709464,0.00021917,2]
[328386280,1717313443082,-500.85521256,0.00021917,2]
[328386281,1717313443091,-175.1474446,0.00021917,2]
[328386282,1717313443100,-502.01173547,0.00021917,2]
[328386283,1717313443110,-300.0,0.00021917,2]
[328386284,1717313443124,-500.16915386,0.00021917,2]
[328386285,1717313443137,-501.34910404,0.00021917,2]
[328386286,1717313443146,-500.0,0.00021917,2]
[328386287,1717313443155,-113.27022421,0.00021917,2]
[328386288,1717313443188,-1955.77977579,0.00021917,2]
[328386289,1717313443197,-501.10514011,0.00021917,2]
[328386290,1717313443207,-500.0,0.00021917,2]
[328386291,1717313443216,-513.38943298,0.00021917,2]
[328386292,1717313443226,-503.74504482,0.00021917,2]
[328386293,1717313443235,-500.95652082,0.00021917,2]
[328386295,1717313443244,-500.0,0.00021917,2]
[328386297,1717313443254,-500.0,0.00021917,2]
[328386299,1717313443263,-500.0,0.00021917,2]
[328386301,1717313443272,-500.85128453,0.00021917,2]
[328386303,1717313443281,-501.80879146,0.00021917,2]
[328386304,1717313443291,-500.0,0.00021917,2]
[328386305,1717313443301,-500.16513075,0.00021917,2]
[328386306,1717313443310,-314.76144796,0.00021917,2]
[328386340,1717313582352,151.00172061,9.9e-05,2]
[328386343,1717313814437,653.0,0.00030253,120]
[328386346,1717313823531,847.20107251,0.00030253,120]
[328386347,1717313825954,824.18784972,0.00030253,120]
[328386354,1717313836471,1000.53548197,0.00030253,30]
[328386355,1717313836890,2000.0,0.00030253,120]
[328386356,1717313837400,220.86506658,0.00030253,120]
[328386357,1717313837868,1015.96337734,0.00030253,120]
[328386358,1717313838536,2255.47086464,0.00030253,120]
[328386359,1717313838568,2695.8216809,0.00030253,90]
[328386360,1717313838737,1030.69546371,0.00030253,120]
[328386361,1717313847591,160.0,0.00030253,30]
[328386391,1717314125560,685.62790104,9.999e-05,2]
[328386397,1717314540326,273.37336231,9.9e-05,2]
[328386401,1717314548388,273.37336231,9.9e-05,2]
[328386405,1717314571680,273.37336231,9.9e-05,2]
[328386415,1717314632739,-9181.89636957,0.0002,7]
[328386417,1717314632750,-685.62790104,0.0002153,2]
[328386419,1717314632760,-498.0,0.00021531,2]
[328386421,1717314632769,-150.0,0.00021686,2]
[328386422,1717314632778,-4233.16048784,0.0002173,2]
[328386424,1717314632787,-292.065583,0.000218,2]
[328386425,1717314632797,-292.065583,0.000218,2]
[328386427,1717314632806,-292.065583,0.000218,2]
[328386429,1717314632815,-193.2158407,0.000218,2]
[328386431,1717314632825,-2000.0,0.00021817,2]
[328386433,1717314632834,-954.62324154,0.00021915,2]
[328386434,1717314632843,-223.74920953,0.00021916,2]
[328386436,1717314632853,-500.0,0.00021916,2]
[328386437,1717314632862,-408.51246628,0.00021916,2]
[328386438,1717314632872,-387.8326086,0.00021916,2]
[328386439,1717314632881,-500.0,0.00021916,2]
[328386440,1717314632890,-500.0,0.00021916,2]
[328386441,1717314632899,-489.85248836,0.00021916,2]
[328386442,1717314632909,-500.0,0.00021916,2]
[328386443,1717314632918,-500.0,0.00021916,2]
[328386444,1717314632928,-500.0,0.00021916,2]
[328386445,1717314632937,-15446.44107601,0.00021917,7]
[328386446,1717314632947,-500.0,0.00021917,2]
[328386447,1717314632956,-500.0,0.00021917,2]
[328386448,1717314632966,-500.0,0.00021917,2]
[328386449,1717314632975,-501.09237778,0.00021917,2]
[328386450,1717314632985,-500.0,0.00021917,2]
[328386451,1717314632994,-500.15122458,0.00021917,2]
[328386452,1717314633003,-501.75527844,0.00021917,2]
[328386453,1717314633013,-420.53949794,0.00021917,2]
[328386454,1717314633022,-501.06987452,0.00021917,2]
[328386455,1717314633031,-504.91,0.00021917,2]
[328386456,1717314633040,-500.0,0.00021917,2]
[328386457,1717314633050,-186.05849183,0.00021917,2]
[328386458,1717314633063,-500.22132053,0.00021917,2]
[328386459,1717314633072,-500.33175732,0.00021917,2]
[328386460,1717314633081,-522.78,0.00021917,2]
[328386461,1717314633090,-500.0,0.00021917,2]
[328386462,1717314633101,-500.0,0.00021917,2]
[328386463,1717314633110,-500.0,0.00021917,2]
[328386464,1717314633119,-500.14646103,0.00021917,2]
[328386465,1717314633129,-500.14613608,0.00021917,2]
[328386466,1717314633141,-501.07201925,0.00021917,2]
[328386467,1717314633151,-523.36,0.00021917,2]
[328386468,1717314633160,-513.28458168,0.00021917,2]
[328386469,1717314633169,-500.0,0.00021917,2]
[328386470,1717314633179,-500.0,0.00021917,2]
[328386471,1717314633188,-500.28459484,0.00021917,2]
[328386472,1717314633197,-507.26882337,0.00021917,2]
[328386473,1717314633206,-762.55,0.00021917,2]
[328386474,1717314633215,-500.0,0.00021917,2]
[328386475,1717314633224,-500.0,0.00021917,2]
[328386476,1717314633233,-500.0,0.00021917,2]
[328386477,1717314633242,-501.53665905,0.00021917,2]
[328386478,1717314633252,-500.0,0.00021917,2]
[328386479,1717314633262,-500.0,0.00021917,2]
[328386480,1717314633271,-500.0,0.00021917,2]
[328386481,1717314633280,-525.29383268,0.00021917,2]
[328386482,1717314633289,-501.63343162,0.00021917,2]
[328386483,1717314633298,-500.0,0.00021917,2]
[328386484,1717314633307,-500.0,0.00021917,2]
[328386485,1717314633316,-500.0,0.00021917,2]
[328386486,1717314633326,-500.0,0.00021917,2]
[328386487,1717314633335,-500.0,0.00021917,2]
[328386488,1717314633345,-501.84693626,0.00021917,2]
[328386489,1717314633354,-500.0,0.00021917,2]
[328386490,1717314633363,-501.81674137,0.00021917,2]
[328386491,1717314633373,-949.65,0.00021917,2]
[328386492,1717314633383,-510.21,0.00021917,2]
[328386493,1717314633393,-502.6634333,0.00021917,2]
[328386494,1717314633402,-404.040265,0.00021917,2]
[328386503,1717314638635,-685.62790104,0.00019999,2]
[328386504,1717314638644,-5624.65527428,0.00021,2]
[328386505,1717314638688,-1518.34020742,0.00021,2]
[328386520,1717314641715,-2493.08267122,0.00021,2]
[328386553,1717314643949,-898.9915,0.0002,2]
[328386554,1717314644003,-10975.39944635,0.0002,2]
[328386555,1717314644013,-13256.8627448,0.00021,2]
[328386556,1717314644022,-3650.54596099,0.00021602,2]
[328386557,1717314644033,-3650.54596099,0.0002187,2]
[328386558,1717314644044,-6818.12176343,0.00021917,7]
[328386559,1717314644054,-96.7791414,0.00021917,2]
[328386560,1717314644063,-500.0,0.00021917,2]
[328386561,1717314644075,-500.42049915,0.00021917,2]
[328386562,1717314644088,-500.2066051,0.00021917,2]
[328386563,1717314644099,-513.7387972,0.00021917,2]
[328386564,1717314644109,-786.51,0.00021917,2]
[328386565,1717314644119,-500.0,0.00021917,2]
[328386566,1717314644129,-500.0,0.00021917,2]
[328386567,1717314644139,-500.0,0.00021917,2]
[328386568,1717314644148,-500.0,0.00021917,2]
[328386569,1717314644159,-500.0,0.00021917,2]
[328386570,1717314644168,-500.0,0.00021917,2]
[328386571,1717314644177,-500.61149182,0.00021917,2]
[328386572,1717314644187,-500.0,0.00021917,2]
[328386573,1717314644196,-550.46,0.00021917,2]
[328386574,1717314644205,-500.0,0.00021917,2]
[328386575,1717314644214,-750.46,0.00021917,2]
[328386576,1717314644224,-500.0,0.00021917,2]
[328386577,1717314644232,-500.0,0.00021917,2]
[328386578,1717314644242,-500.0,0.00021917,2]
[328386579,1717314644251,-500.0,0.00021917,2]
[328386580,1717314644260,-567.19,0.00021917,2]
[328386581,1717314644270,-500.0,0.00021917,2]
[328386582,1717314644279,-500.0,0.00021917,2]
[328386583,1717314644287,-500.0,0.00021917,2]
[328386584,1717314644296,-500.0,0.00021917,2]
[328386585,1717314644306,-500.0,0.00021917,2]
[328386586,1717314644315,-875.66,0.00021917,2]
[328386587,1717314644324,-707.1,0.00021917,2]
[328386588,1717314644333,-1072.33,0.00021917,2]
[328386589,1717314644342,-500.00722029,0.00021917,2]
[328386590,1717314644351,-500.0,0.00021917,2]
[328386591,1717314644361,-500.0,0.00021917,2]
[328386592,1717314644370,-500.0,0.00021917,2]
[328386593,1717314644378,-1019.19,0.00021917,2]
[328386594,1717314644388,-500.0,0.00021917,2]
[328386595,1717314644399,-534.47,0.00021917,2]
[328386596,1717314644408,-161.12707305,0.00021917,2]
[328386597,1717314644417,-1683.38,0.00021917,2]
[328386598,1717314644427,-501.56372324,0.00021917,2]
[328386599,1717314644437,-500.0,0.00021917,2]
[328386600,1717314644445,-1729.81,0.00021917,2]
[328386601,1717314644455,-620.17,0.00021917,2]
[328386602,1717314644464,-500.0,0.00021917,2]
[328386603,1717314644473,-504.05169014,0.00021917,2]
[328386604,1717314644482,-536.23755978,0.00021917,2]
[328386605,1717314644491,-739.23,0.00021917,2]
[328386606,1717314644500,-979.82,0.00021917,2]
[328386607,1717314644509,-649.49,0.00021917,2]
[328386608,1717314644518,-500.0,0.00021917,2]
[328386609,1717314644527,-332.34014034,0.00021917,2]
[328386610,1717314644536,-531.21,0.00021917,2]
[328386611,1717314644545,-500.0,0.00021917,2]
[328386612,1717314644554,-500.0,0.00021917,2]
[328386613,1717314644563,-500.0,0.00021917,2]
[328386614,1717314644572,-500.0,0.00021917,2]
[328386615,1717314644582,-500.0,0.00021917,2]
[328386616,1717314644591,-504.11207254,0.00021917,2]
[328386617,1717314644600,-500.0,0.00021917,2]
[328386618,1717314644609,-500.0,0.00021917,2]
[328386619,1717314644618,-500.0,0.00021917,2]
[328386620,1717314644627,-500.0,0.00021917,2]
[328386621,1717314644636,-164.27601971,0.00021917,2]
[328386622,1717314644645,-500.0,0.00021917,2]
[328386623,1717314644655,-618.76,0.00021917,2]
[328386624,1717314644664,-500.0,0.00021917,2]
[328386625,1717314644673,-500.0,0.00021917,2]
[328386626,1717314644683,-500.91827285,0.00021917,2]
[328386627,1717314644692,-646.10521389,0.00021917,2]
[328386628,1717314644702,-500.0,0.00021917,2]
[328386629,1717314644833,-500.0,0.00021917,2]
[328386630,1717314644843,-928.52,0.00021917,2]
[328386631,1717314644852,-500.0,0.00021917,2]
[328386632,1717314644862,-501.00523195,0.00021917,2]
[328386633,1717314644872,-2840.39,0.00021917,2]
[328386634,1717314644881,-500.0,0.00021917,2]
[328386635,1717314644890,-1010.76,0.00021917,2]
[328386636,1717314644899,-500.0,0.00021917,2]
[328386637,1717314644908,-577.07489501,0.00021917,2]
[328386638,1717314644918,-155.31689156,0.00021917,2]
[328386639,1717314644927,-500.0,0.00021917,2]
[328386640,1717314644937,-1032.67,0.00021917,2]
[328386641,1717314644946,-501.53201301,0.00021917,2]
[328386642,1717314644955,-500.0,0.00021917,2]
[328386643,1717314644964,-500.0,0.00021917,2]
[328386644,1717314644973,-500.0,0.00021917,2]
[328386645,1717314644982,-425.8498997,0.00021917,2]
[328386646,1717314644992,-548.36,0.00021917,2]
[328386647,1717314645001,-500.0,0.00021917,2]
[328386648,1717314645010,-500.0,0.00021917,2]
[328386649,1717314645019,-519.99,0.00021917,2]
[328386650,1717314645028,-1003.4,0.00021917,2]
[328386651,1717314645037,-500.0,0.00021917,2]
[328386652,1717314645046,-500.0,0.00021917,2]
[328386653,1717314645055,-500.0,0.00021917,2]
[328386654,1717314645064,-500.0,0.00021917,2]
[328386655,1717314645074,-500.0,0.00021917,2]
[328386656,1717314645083,-500.0,0.00021917,2]
[328386657,1717314645093,-1234.43,0.00021917,2]
[328386658,1717314645106,-500.0,0.00021917,2]
[328386659,1717314645115,-500.0,0.00021917,2]
[328386660,1717314645124,-598.6,0.00021917,2]
[328386661,1717314645134,-500.0,0.00021917,2]
[328386662,1717314645144,-500.0,0.00021917,2]
[328386663,1717314645153,-500.0,0.00021917,2]
[328386664,1717314645171,-500.0,0.00021917,2]
[328386665,1717314645186,-500.0,0.00021917,2]
[328386666,1717314645196,-500.0,0.00021917,2]
[328386667,1717314645206,-500.0,0.00021917,2]
[328386668,1717314645216,-500.0,0.00021917,2]
[328386669,1717314645226,-301.08042093,0.00021917,2]
[328386670,1717314645236,-1163.58,0.00021917,2]
[328386671,1717314645246,-500.0,0.00021917,2]
[328386672,1717314645256,-500.0,0.00021917,2]
[328386673,1717314645266,-500.0,0.00021917,2]
[328386674,1717314645276,-500.0,0.00021917,2]
[328386675,1717314645286,-500.0,0.00021917,2]
[328386676,1717314645296,-176.22628214,0.00021917,2]
[328386677,1717314645306,-587.75,0.00021917,2]
[328386678,1717314645315,-500.0,0.00021917,2]
[328386679,1717314645325,-501.44599379,0.00021917,2]
[328386680,1717314645335,-505.47,0.00021917,2]
[328386681,1717314645345,-500.0,0.00021917,2]
[328386682,1717314645355,-500.0,0.00021917,2]
[328386683,1717314645365,-2214.97,0.00021917,2]
[328386684,1717314645374,-500.0,0.00021917,2]
[328386685,1717314645384,-500.0,0.00021917,2]
[328386686,1717314645396,-506.15002575,0.00021917,2]
[328386687,1717314645405,-500.0,0.00021917,2]
[328386688,1717314645415,-1671.05,0.00021917,2]
[328386689,1717314645425,-500.0,0.00021917,2]
[328386690,1717314645436,-709.04,0.00021917,2]
[328386691,1717314645445,-500.0,0.00021917,2]
[328386692,1717314645454,-2525.11,0.00021917,2]
[328386693,1717314645463,-544.1,0.00021917,2]
[328386694,1717314645473,-512.04,0.00021917,2]
[328386695,1717314645483,-886.59,0.00021917,2]
[328386696,1717314645492,-2501.59,0.00021917,2]
[328386697,1717314645502,-500.0,0.00021917,2]
[328386698,1717314645511,-500.0,0.00021917,2]
[328386699,1717314645521,-500.31649805,0.00021917,2]
[328386700,1717314645530,-500.0,0.00021917,2]
[328386701,1717314645540,-519.20067558,0.00021917,2]
[328386702,1717314645549,-500.0,0.00021917,2]
[328386703,1717314645559,-547.95,0.00021917,2]
[328386704,1717314645568,-996.5,0.00021917,2]
[328386705,1717314645577,-517.25892144,0.00021917,2]
[328386706,1717314645587,-501.82364427,0.00021917,2]
[328386707,1717314645596,-500.0,0.00021917,2]
[328386708,1717314645605,-500.0,0.00021917,2]
[328386709,1717314645615,-582.53,0.00021917,2]
[328386710,1717314645624,-500.0,0.00021917,2]
[328386711,1717314645634,-500.0,0.00021917,2]
[328386712,1717314645644,-1959.49,0.00021917,2]
[328386713,1717314645654,-501.8130771,0.00021917,2]
[328386714,1717314645663,-500.0,0.00021917,2]
[328386715,1717314645672,-572.35471887,0.00021917,2]
[328386716,1717314645682,-309.69541493,0.00021917,2]
[328386717,1717314645691,-500.0,0.00021917,2]
[328386718,1717314645701,-500.0,0.00021917,2]
[328386719,1717314645710,-500.0,0.00021917,2]
[328386720,1717314645720,-500.0,0.00021917,2]
[328386721,1717314645730,-500.0,0.00021917,2]
[328386722,1717314645742,-1002.31536745,0.00021917,2]
[328386723,1717314645752,-500.0,0.00021917,2]
[328386724,1717314645762,-581.54,0.00021917,2]
[328386725,1717314645772,-504.3330542,0.00021917,2]
[328386726,1717314645781,-2442.83,0.00021917,2]
[328386727,1717314645790,-500.0,0.00021917,2]
[328386728,1717314645799,-500.0,0.00021917,2]
[328386729,1717314645808,-1496.09,0.00021917,2]
[328386730,1717314645817,-598.9,0.00021917,2]
[328386731,1717314645827,-500.0,0.00021917,2]
[328386732,1717314645836,-501.27467065,0.00021917,2]
[328386733,1717314645845,-502.57850461,0.00021917,2]
[328386734,1717314645856,-500.0,0.00021917,2]
[328386735,1717314645866,-500.0,0.00021917,2]
[328386736,1717314645875,-510.47,0.00021917,2]
[328386737,1717314645884,-500.0,0.00021917,2]
[328386738,1717314645895,-626.66,0.00021917,2]
[328386739,1717314645905,-626.66,0.00021917,2]
[328386740,1717314645917,-626.66,0.00021917,2]
[328386741,1717314645926,-626.66,0.00021917,2]
[328386742,1717314645937,-626.66,0.00021917,2]
[328386743,1717314645947,-626.66,0.00021917,2]
[328386744,1717314645956,-626.66,0.00021917,2]
[328386745,1717314645966,-626.66,0.00021917,2]
[328386746,1717314645978,-626.66,0.00021917,2]
[328386747,1717314645989,-500.0,0.00021917,2]
[328386748,1717314645999,-626.66,0.00021917,2]
[328386749,1717314646008,-626.66,0.00021917,2]
[328386750,1717314646019,-264.36285204,0.00021917,2]
[328386751,1717314646028,-626.66,0.00021917,2]
[328386752,1717314646038,-626.66,0.00021917,2]
[328386753,1717314646048,-626.66,0.00021917,2]
[328386754,1717314646058,-500.0,0.00021917,2]
[328386755,1717314646067,-626.66,0.00021917,2]
[328386756,1717314646077,-500.0,0.00021917,2]
[328386757,1717314646086,-626.66,0.00021917,2]
[328386758,1717314646097,-626.66,0.00021917,2]
[328386759,1717314646107,-761.39,0.00021917,2]
[328386761,1717314646117,-501.49077333,0.00021917,2]
[328386762,1717314646126,-713.92,0.00021917,2]
[328386764,1717314646135,-616.79000337,0.00021917,2]
[328386765,1717314646144,-500.0,0.00021917,2]
[328386766,1717314646153,-500.0,0.00021917,2]
[328386767,1717314646163,-500.0,0.00021917,2]
[328386768,1717314646172,-500.45060059,0.00021917,2]
[328386769,1717314646181,-609.34,0.00021917,2]
[328386770,1717314646192,-500.0,0.00021917,2]
[328386771,1717314646201,-531.23010399,0.00021917,2]
[328386772,1717314646211,-500.0,0.00021917,2]
[328386773,1717314646222,-500.0,0.00021917,2]
[328386775,1717314646232,-629.61,0.00021917,2]
[328386776,1717314646242,-613.5,0.00021917,2]
[328386777,1717314646253,-501.34077468,0.00021917,2]
[328386778,1717314646262,-1261.93,0.00021917,2]
[328386779,1717314646271,-536.36,0.00021917,2]
[328386780,1717314646281,-500.0,0.00021917,2]
[328386781,1717314646290,-500.0,0.00021917,2]
[328386782,1717314646300,-500.0,0.00021917,2]
[328386783,1717314646309,-500.0,0.00021917,2]
[328386784,1717314646319,-500.0,0.00021917,2]
[328386785,1717314646328,-500.0,0.00021917,2]
[328386786,1717314646337,-1177.67,0.00021917,2]
[328386787,1717314646346,-576.57954155,0.00021917,2]
[328386788,1717314646356,-579.98,0.00021917,2]
[328386789,1717314646365,-2441.57,0.00021917,2]
[328386790,1717314646375,-500.0,0.00021917,2]
[328386791,1717314646384,-500.0,0.00021917,2]
[328386792,1717314646395,-547.64,0.00021917,2]
[328386793,1717314646405,-544.63275438,0.00021917,2]
[328386795,1717314646415,-500.0,0.00021917,2]
[328386798,1717314646424,-500.0,0.00021917,2]
[328386800,1717314646434,-500.0,0.00021917,2]
[328386802,1717314646443,-500.0,0.00021917,2]
[328386804,1717314646453,-2020.22,0.00021917,2]
[328386806,1717314646463,-500.0,0.00021917,2]
[328386808,1717314646472,-520.8744589,0.00021917,2]
[328386810,1717314646483,-1064.71,0.00021917,2]
[328386812,1717314646493,-934.39,0.00021917,2]
[328386813,1717314646502,-500.0,0.00021917,2]
[328386815,1717314646511,-500.0,0.00021917,2]
[328386817,1717314646521,-500.0,0.00021917,2]
[328386818,1717314646530,-500.0,0.00021917,2]
[328386819,1717314646540,-500.0,0.00021917,2]
[328386820,1717314646549,-1982.84,0.00021917,2]
[328386821,1717314646559,-500.0,0.00021917,2]
[328386822,1717314646568,-256.17865326,0.00021917,2]
[328386824,1717314646577,-500.0,0.00021917,2]
[328386827,1717314646587,-500.0,0.00021917,2]
[328386836,1717314646698,-300.0,0.00021917,2]
[328386837,1717314646707,-1292.84,0.00021917,2]
[328386838,1717314646716,-500.0,0.00021917,2]
[328386839,1717314646725,-1473.71,0.00021917,2]
[328386840,1717314646734,-500.0,0.00021917,2]
[328386841,1717314646744,-500.0,0.00021917,2]
[328386842,1717314646753,-1820.67,0.00021917,2]
[328386843,1717314646762,-500.0,0.00021917,2]
[328386844,1717314646771,-501.6773595,0.00021917,2]
[328386845,1717314646780,-501.58690745,0.00021917,2]
[328386846,1717314646789,-1021.13,0.00021917,2]
[328386847,1717314646798,-511.20222726,0.00021917,2]
[328386848,1717314646807,-500.0,0.00021917,2]
[328386849,1717314646815,-500.0,0.00021917,2]
[328386850,1717314646824,-500.0,0.00021917,2]
[328386851,1717314646833,-500.0,0.00021917,2]
[328386852,1717314646842,-500.68877891,0.00021917,2]
[328386853,1717314646851,-500.0,0.00021917,2]
[328386854,1717314646860,-439.17614621,0.00021917,2]
[328386855,1717314646869,-431.18729853,0.00021917,2]
[328386856,1717314646878,-500.0,0.00021917,2]
[328386857,1717314646887,-3709.78,0.00021917,2]
[328386858,1717314646896,-185.23855204,0.00021917,2]
[328386859,1717314646905,-500.0,0.00021917,2]
[328386860,1717314646914,-4210.91,0.00021917,2]
[328386861,1717314646923,-1254.45,0.00021917,2]
[328386862,1717314646932,-500.0,0.00021917,2]
[328386863,1717314646941,-4210.91,0.00021917,2]
[328386864,1717314646951,-4210.91,0.00021917,2]
[328386865,1717314646960,-4210.91,0.00021917,2]
[328386866,1717314646970,-500.0,0.00021917,2]
[328386867,1717314646980,-4210.91,0.00021917,2]
[328386868,1717314646989,-4210.91,0.00021917,2]
[328386869,1717314646998,-4210.91,0.00021917,2]
[328386870,1717314647007,-4210.91,0.00021917,2]
[328386871,1717314647016,-4210.91,0.00021917,2]
[328386872,1717314647026,-4210.91,0.00021917,2]
[328386873,1717314647035,-4210.91,0.00021917,2]
[328386874,1717314647044,-4210.91,0.00021917,2]
[328386875,1717314647053,-500.0,0.00021917,2]
[328386876,1717314647062,-500.0,0.00021917,2]
[328386877,1717314647072,-728.5,0.00021917,2]
[328386878,1717314647081,-500.0,0.00021917,2]
[328386879,1717314647091,-529.43216271,0.00021917,2]
[328386880,1717314647105,-505.51683367,0.00021917,2]
[328386881,1717314647114,-500.0,0.00021917,2]
[328386882,1717314647123,-501.0349167,0.00021917,2]
[328386883,1717314647132,-4580.27,0.00021917,2]
[328386884,1717314647143,-500.0,0.00021917,2]
[328386885,1717314647151,-500.0,0.00021917,2]
[328386886,1717314647160,-1260.03,0.00021917,2]
[328386887,1717314647169,-500.0,0.00021917,2]
[328386888,1717314647181,-500.0,0.00021917,2]
[328386889,1717314647191,-500.0,0.00021917,2]
[328386890,1717314647202,-500.0,0.00021917,2]
[328386891,1717314647211,-5298.96,0.00021917,2]
[328386892,1717314647220,-500.0,0.00021917,2]
[328386893,1717314647229,-500.0,0.00021917,2]
[328386894,1717314647238,-500.0,0.00021917,2]
[328386895,1717314647247,-500.0,0.00021917,2]
[328386896,1717314647260,-501.5060044,0.00021917,2]
[328386897,1717314647269,-664.0,0.00021917,2]
[328386898,1717314647279,-738.25,0.00021917,2]
[328386899,1717314647288,-500.0,0.00021917,2]
[328386900,1717314647297,-500.0,0.00021917,2]
[328386901,1717314647307,-500.0,0.00021917,2]
[328386902,1717314647316,-1582.06,0.00021917,2]
[328386903,1717314647325,-6865.75,0.00021917,2]
[328386904,1717314647335,-500.0,0.00021917,2]
[328386905,1717314647344,-500.0,0.00021917,2]
[328386906,1717314647353,-500.0,0.00021917,2]
[328386907,1717314647362,-505.0411983,0.00021917,2]
[328386908,1717314647371,-500.0,0.00021917,2]
[328386909,1717314647380,-390.34867605,0.00021917,2]
[328386910,1717314647390,-616.43,0.00021917,2]
[328386911,1717314647400,-18987.87,0.00021917,2]
[328386912,1717314647410,-1172.78,0.00021917,2]
[328386913,1717314647419,-500.0,0.00021917,2]
[328386914,1717314647428,-500.0,0.00021917,2]
[328386915,1717314647438,-821.5,0.00021917,2]
[328386916,1717314647447,-500.0,0.00021917,2]
[328386917,1717314647456,-500.0,0.00021917,2]
[328386918,1717314647466,-500.0,0.00021917,2]
[328386919,1717314647475,-615.86,0.00021917,2]
[328386920,1717314647484,-500.0,0.00021917,2]
[328386921,1717314647493,-500.0,0.00021917,2]
[328386922,1717314647502,-549.57810338,0.00021917,2]
[328386923,1717314647512,-769.69,0.00021917,2]
[328386924,1717314647521,-1212.86,0.00021917,2]
[328386925,1717314647530,-1482.04,0.00021917,2]
[328386926,1717314647539,-500.0,0.00021917,2]
[328386927,1717314647548,-796.57,0.00021917,2]
[328386928,1717314647557,-500.0,0.00021917,2]
[328386929,1717314647566,-542.61,0.00021917,2]
[328386930,1717314647575,-500.0,0.00021917,2]
[328386931,1717314647584,-151.37713829,0.00021917,2]
[328386932,1717314647594,-500.55415428,0.00021917,2]
[328386933,1717314647603,-500.0,0.00021917,2]
[328386934,1717314647611,-6303.59,0.00021917,2]